Workbook

Sheet Springplank
D2: =Vertalingen!C4 -> Effect van Springplank op de werkloosheidsvergoeding.
B4: =Vertalingen!C5 -> Het dagbedrag van je Dagelijkse Werkloosheidsuitkering (DW) zal verminderd worden met het deel van het bedrag van het dagelijks inkomen
B5: =Vertalingen!C6 -> dat verkregen wordt uit je nevenactiviteit dat 14,84 € overschrijdt (volgens de index geldig op 1/9/2021).
B7: =Vertalingen!C7 -> Het dagelijks inkomen wordt bekomen door het netto belastbaar jaarinkomen (= bruto - lasten) te delen door 312.
C8: =Vertalingen!C8 -> (of door je maandelijks inkomen te delen door 26)
B9: =Vertalingen!C9 -> Op basis van deze regel
B10: =Vertalingen!C10 -> 1/ Krijg je je volledige werkloosheidsuitkering nog als je netto belastbaar jaarinkomen kleiner of gelijk is aan 14,84 € x 312 = €4630,08 )
B11: =Vertalingen!C11 -> 2/ Krijg je geen werkloosheidsuitkering meer als je meer verdiend dan ( 14,84 € + DW) X 312
B12: =Vertalingen!C12 -> 3/ Tussen deze bedragen krijg je een werkloosheidsuitkering volgens de formule DW - ( Jaarinkomen/312 - 14,84 € )
B14: =Vertalingen!C13 -> Basisinformatie | E14: =Vertalingen!C14 -> Per maand | G14: =Vertalingen!C15 -> Toelage vermindert vanaf | J14: =Vertalingen!C16 -> Toelage valt volledig weg vanaf
B15: =Vertalingen!C17 -> Dagelijkse Werloosheidsvergoeding (DW) | C15: 38 | D15: =Vertalingen!C18 -> of x26 | E15: =C15*312/12 -> 988 | G15: =Parameter_RVA*312 -> 4630.08 | J15: =(C15+Parameter_RVA)*312 -> 16486.08
B16: =Vertalingen!C19 -> Parameter RVA | C16: 14.84 | D16: =Vertalingen!C20 -> index 1/9/2021
B18: =Vertalingen!C21 -> Geschat jaarinkomen Inkomsten - kosten | C18: 9000 | G18: =Vertalingen!C22 -> Gemiddeld uitbetaalde werkloosheidsvergoeding | J18: =IF($C$18<(Parameter_RVA)*312,$C$15,IF($C$18>(Parameter_RVA+$C$15)*312,0,$C$15-($C$18/312-Parameter_RVA))) -> 23.99384615
G19: =Vertalingen!C23 -> Ontvangen van RVA | J19: =C15*312 -> 11856
B20: =Vertalingen!C24 -> Grafische voorstelling | G20: =Vertalingen!C26 -> Terug te betalen aan RVA | J20: =(C15-J18)*312 -> 4369.92
O21: =Vertalingen!C30 -> Evolutie van het terug te betalen bedrag aan de RVA in functie van de dagelijkse werkloosheidsvergoeding en het jaarlijks inkomen uit het zelfstandig beroep;
P23: =Vertalingen!C17 -> Dagelijkse Werloosheidsvergoeding (DW)
O24: =312*($C$15-IF($C$18<(Parameter_RVA)*312,$C$15,IF($C$18>(Parameter_RVA+$C$15)*312,0,$C$15-($C$18/312-Parameter_RVA)))) -> 4369.92 | P24: 5 | Q24: 10 | R24: 15 | S24: 20 | T24: 25 | U24: 30 | V24: 35 | W24: 40 | X24: 45 | Y24: 50 | Z24: 55 | AA24: 60 | AB24: 65
O25: 1000 | P25: 0 | Q25: 0 | R25: 0 | S25: 0 | T25: 0 | U25: 0 | V25: 0 | W25: 0 | X25: 0 | Y25: 0 | Z25: 0 | AA25: 0 | AB25: 0
O26: 2000 | P26: 0 | Q26: 0 | R26: 0 | S26: 0 | T26: 0 | U26: 0 | V26: 0 | W26: 0 | X26: 0 | Y26: 0 | Z26: 0 | AA26: 0 | AB26: 0
O27: 3000 | P27: 0 | Q27: 0 | R27: 0 | S27: 0 | T27: 0 | U27: 0 | V27: 0 | W27: 0 | X27: 0 | Y27: 0 | Z27: 0 | AA27: 0 | AB27: 0
O28: 4000 | P28: 0 | Q28: 0 | R28: 0 | S28: 0 | T28: 0 | U28: 0 | V28: 0 | W28: 0 | X28: 0 | Y28: 0 | Z28: 0 | AA28: 0 | AB28: 0
O29: 5000 | P29: 369.92 | Q29: 369.92 | R29: 369.92 | S29: 369.92 | T29: 369.92 | U29: 369.92 | V29: 369.92 | W29: 369.92 | X29: 369.92 | Y29: 369.92 | Z29: 369.92 | AA29: 369.92 | AB29: 369.92
O30: 6000 | P30: 1369.92 | Q30: 1369.92 | R30: 1369.92 | S30: 1369.92 | T30: 1369.92 | U30: 1369.92 | V30: 1369.92 | W30: 1369.92 | X30: 1369.92 | Y30: 1369.92 | Z30: 1369.92 | AA30: 1369.92 | AB30: 1369.92
O31: 7000 | P31: 1560 | Q31: 2369.92 | R31: 2369.92 | S31: 2369.92 | T31: 2369.92 | U31: 2369.92 | V31: 2369.92 | W31: 2369.92 | X31: 2369.92 | Y31: 2369.92 | Z31: 2369.92 | AA31: 2369.92 | AB31: 2369.92
O32: 8000 | P32: 1560 | Q32: 3120 | R32: 3369.92 | S32: 3369.92 | T32: 3369.92 | U32: 3369.92 | V32: 3369.92 | W32: 3369.92 | X32: 3369.92 | Y32: 3369.92 | Z32: 3369.92 | AA32: 3369.92 | AB32: 3369.92
O33: 9000 | P33: 1560 | Q33: 3120 | R33: 4369.92 | S33: 4369.92 | T33: 4369.92 | U33: 4369.92 | V33: 4369.92 | W33: 4369.92 | X33: 4369.92 | Y33: 4369.92 | Z33: 4369.92 | AA33: 4369.92 | AB33: 4369.92
O34: 10000 | P34: 1560 | Q34: 3120 | R34: 4680 | S34: 5369.92 | T34: 5369.92 | U34: 5369.92 | V34: 5369.92 | W34: 5369.92 | X34: 5369.92 | Y34: 5369.92 | Z34: 5369.92 | AA34: 5369.92 | AB34: 5369.92
O35: 11000 | P35: 1560 | Q35: 3120 | R35: 4680 | S35: 6240 | T35: 6369.92 | U35: 6369.92 | V35: 6369.92 | W35: 6369.92 | X35: 6369.92 | Y35: 6369.92 | Z35: 6369.92 | AA35: 6369.92 | AB35: 6369.92
O36: 12000 | P36: 1560 | Q36: 3120 | R36: 4680 | S36: 6240 | T36: 7369.92 | U36: 7369.92 | V36: 7369.92 | W36: 7369.92 | X36: 7369.92 | Y36: 7369.92 | Z36: 7369.92 | AA36: 7369.92 | AB36: 7369.92
O37: 13000 | P37: 1560 | Q37: 3120 | R37: 4680 | S37: 6240 | T37: 7800 | U37: 8369.92 | V37: 8369.92 | W37: 8369.92 | X37: 8369.92 | Y37: 8369.92 | Z37: 8369.92 | AA37: 8369.92 | AB37: 8369.92
O38: 14000 | P38: 1560 | Q38: 3120 | R38: 4680 | S38: 6240 | T38: 7800 | U38: 9360 | V38: 9369.92 | W38: 9369.92 | X38: 9369.92 | Y38: 9369.92 | Z38: 9369.92 | AA38: 9369.92 | AB38: 9369.92
O39: 15000 | P39: 1560 | Q39: 3120 | R39: 4680 | S39: 6240 | T39: 7800 | U39: 9360 | V39: 10369.92 | W39: 10369.92 | X39: 10369.92 | Y39: 10369.92 | Z39: 10369.92 | AA39: 10369.92 | AB39: 10369.92
O40: 16000 | P40: 1560 | Q40: 3120 | R40: 4680 | S40: 6240 | T40: 7800 | U40: 9360 | V40: 10920 | W40: 11369.92 | X40: 11369.92 | Y40: 11369.92 | Z40: 11369.92 | AA40: 11369.92 | AB40: 11369.92
O41: 17000 | P41: 1560 | Q41: 3120 | R41: 4680 | S41: 6240 | T41: 7800 | U41: 9360 | V41: 10920 | W41: 12369.92 | X41: 12369.92 | Y41: 12369.92 | Z41: 12369.92 | AA41: 12369.92 | AB41: 12369.92
O42: 18000 | P42: 1560 | Q42: 3120 | R42: 4680 | S42: 6240 | T42: 7800 | U42: 9360 | V42: 10920 | W42: 12480 | X42: 13369.92 | Y42: 13369.92 | Z42: 13369.92 | AA42: 13369.92 | AB42: 13369.92
O43: 19000 | P43: 1560 | Q43: 3120 | R43: 4680 | S43: 6240 | T43: 7800 | U43: 9360 | V43: 10920 | W43: 12480 | X43: 14040 | Y43: 14369.92 | Z43: 14369.92 | AA43: 14369.92 | AB43: 14369.92
O44: 20000 | P44: 1560 | Q44: 3120 | R44: 4680 | S44: 6240 | T44: 7800 | U44: 9360 | V44: 10920 | W44: 12480 | X44: 14040 | Y44: 15369.92 | Z44: 15369.92 | AA44: 15369.92 | AB44: 15369.92
P46: =Vertalingen!C31 -> Niets terug te betalen
P47: =Vertalingen!C32 -> Gedeeltelijk terug te betalen
P48: =Vertalingen!C33 -> Alles terug te betalen

Sheet Parameters
A2: Jaarinkomen | B2: Uitkering | D2: Parameter RVA evolueert samen met de spilindex.
A3: 0 | B3: =IF(Springplank!B17<(Parameter_RVA)*312,Springplank!$C$15,IF(Springplank!B17>(Parameter_RVA+Springplank!$C$15)*312,0,Springplank!$C$15-(Springplank!B17/312-Parameter_RVA))) -> 38 | D3: De spilindex werd in Maart 2020 overschreden. | H3: (Index van 2013. 107,52)
A4: 1000 | B4: =IF(A4<(Parameter_RVA)*312,Springplank!$C$15,IF(A4>(Parameter_RVA+Springplank!$C$15)*312,0,Springplank!$C$15-(A4/312-Parameter_RVA))) -> 38 | D4: De parameter werd op 1/3/2020 op 14,54€ gezet;
A5: 2000 | B5: =IF(A5<(Parameter_RVA)*312,Springplank!$C$15,IF(A5>(Parameter_RVA+Springplank!$C$15)*312,0,Springplank!$C$15-(A5/312-Parameter_RVA))) -> 38 | D5: Spilindex volgt de gezondheidsindex.
A6: 3000 | B6: =IF(A6<(Parameter_RVA)*312,Springplank!$C$15,IF(A6>(Parameter_RVA+Springplank!$C$15)*312,0,Springplank!$C$15-(A6/312-Parameter_RVA))) -> 38
A7: 4000 | B7: =IF(A7<(Parameter_RVA)*312,Springplank!$C$15,IF(A7>(Parameter_RVA+Springplank!$C$15)*312,0,Springplank!$C$15-(A7/312-Parameter_RVA))) -> 38
A8: =Springplank!$G$15 -> 4630.08 | B8: =IF(A8<(Parameter_RVA)*312,Springplank!$C$15,IF(A8>(Parameter_RVA+Springplank!$C$15)*312,0,Springplank!$C$15-(A8/312-Parameter_RVA))) -> 38
A9: 5000 | B9: =IF(A9<(Parameter_RVA)*312,Springplank!$C$15,IF(A9>(Parameter_RVA+Springplank!$C$15)*312,0,Springplank!$C$15-(A9/312-Parameter_RVA))) -> 36.81435897
A10: 6000 | B10: =IF(A10<(Parameter_RVA)*312,Springplank!$C$15,IF(A10>(Parameter_RVA+Springplank!$C$15)*312,0,Springplank!$C$15-(A10/312-Parameter_RVA))) -> 33.60923077
A11: 7000 | B11: =IF(A11<(Parameter_RVA)*312,Springplank!$C$15,IF(A11>(Parameter_RVA+Springplank!$C$15)*312,0,Springplank!$C$15-(A11/312-Parameter_RVA))) -> 30.40410256
A12: 8000 | B12: =IF(A12<(Parameter_RVA)*312,Springplank!$C$15,IF(A12>(Parameter_RVA+Springplank!$C$15)*312,0,Springplank!$C$15-(A12/312-Parameter_RVA))) -> 27.19897436
A13: 9000 | B13: =IF(A13<(Parameter_RVA)*312,Springplank!$C$15,IF(A13>(Parameter_RVA+Springplank!$C$15)*312,0,Springplank!$C$15-(A13/312-Parameter_RVA))) -> 23.99384615
A14: 10000 | B14: =IF(A14<(Parameter_RVA)*312,Springplank!$C$15,IF(A14>(Parameter_RVA+Springplank!$C$15)*312,0,Springplank!$C$15-(A14/312-Parameter_RVA))) -> 20.78871795
A15: 11000 | B15: =IF(A15<(Parameter_RVA)*312,Springplank!$C$15,IF(A15>(Parameter_RVA+Springplank!$C$15)*312,0,Springplank!$C$15-(A15/312-Parameter_RVA))) -> 17.58358974
A16: 12000 | B16: =IF(A16<(Parameter_RVA)*312,Springplank!$C$15,IF(A16>(Parameter_RVA+Springplank!$C$15)*312,0,Springplank!$C$15-(A16/312-Parameter_RVA))) -> 14.37846154
A17: =Springplank!$J$15 -> 16486.08 | B17: =IF(A17<(Parameter_RVA)*312,Springplank!$C$15,IF(A17>(Parameter_RVA+Springplank!$C$15)*312,0,Springplank!$C$15-(A17/312-Parameter_RVA))) -> 0
A18: 13000 | B18: =IF(A18<(Parameter_RVA)*312,Springplank!$C$15,IF(A18>(Parameter_RVA+Springplank!$C$15)*312,0,Springplank!$C$15-(A18/312-Parameter_RVA))) -> 11.17333333
A19: 14000 | B19: =IF(A19<(Parameter_RVA)*312,Springplank!$C$15,IF(A19>(Parameter_RVA+Springplank!$C$15)*312,0,Springplank!$C$15-(A19/312-Parameter_RVA))) -> 7.968205128
A20: 15000 | B20: =IF(A20<(Parameter_RVA)*312,Springplank!$C$15,IF(A20>(Parameter_RVA+Springplank!$C$15)*312,0,Springplank!$C$15-(A20/312-Parameter_RVA))) -> 4.763076923
A21: 16000 | B21: =IF(A21<(Parameter_RVA)*312,Springplank!$C$15,IF(A21>(Parameter_RVA+Springplank!$C$15)*312,0,Springplank!$C$15-(A21/312-Parameter_RVA))) -> 1.557948718
A22: 17000 | B22: =IF(A22<(Parameter_RVA)*312,Springplank!$C$15,IF(A22>(Parameter_RVA+Springplank!$C$15)*312,0,Springplank!$C$15-(A22/312-Parameter_RVA))) -> 0
A23: 18000 | B23: =IF(A23<(Parameter_RVA)*312,Springplank!$C$15,IF(A23>(Parameter_RVA+Springplank!$C$15)*312,0,Springplank!$C$15-(A23/312-Parameter_RVA))) -> 0
A24: 19000 | B24: =IF(A24<(Parameter_RVA)*312,Springplank!$C$15,IF(A24>(Parameter_RVA+Springplank!$C$15)*312,0,Springplank!$C$15-(A24/312-Parameter_RVA))) -> 0
A25: 20000 | B25: =IF(A25<(Parameter_RVA)*312,Springplank!$C$15,IF(A25>(Parameter_RVA+Springplank!$C$15)*312,0,Springplank!$C$15-(A25/312-Parameter_RVA))) -> 0
A26: 21000 | B26: =IF(A26<(Parameter_RVA)*312,Springplank!$C$15,IF(A26>(Parameter_RVA+Springplank!$C$15)*312,0,Springplank!$C$15-(A26/312-Parameter_RVA))) -> 0
A27: 22000 | B27: =IF(A27<(Parameter_RVA)*312,Springplank!$C$15,IF(A27>(Parameter_RVA+Springplank!$C$15)*312,0,Springplank!$C$15-(A27/312-Parameter_RVA))) -> 0
A28: 23000 | B28: =IF(A28<(Parameter_RVA)*312,Springplank!$C$15,IF(A28>(Parameter_RVA+Springplank!$C$15)*312,0,Springplank!$C$15-(A28/312-Parameter_RVA))) -> 0
A29: 24000 | B29: =IF(A29<(Parameter_RVA)*312,Springplank!$C$15,IF(A29>(Parameter_RVA+Springplank!$C$15)*312,0,Springplank!$C$15-(A29/312-Parameter_RVA))) -> 0
A30: 25000 | B30: =IF(A30<(Parameter_RVA)*312,Springplank!$C$15,IF(A30>(Parameter_RVA+Springplank!$C$15)*312,0,Springplank!$C$15-(A30/312-Parameter_RVA))) -> 0
A31: 26000 | B31: =IF(A31<(Parameter_RVA)*312,Springplank!$C$15,IF(A31>(Parameter_RVA+Springplank!$C$15)*312,0,Springplank!$C$15-(A31/312-Parameter_RVA))) -> 0

Sheet Vertalingen
D1: Taalkeuze
D2: 1
C3: Gekozen taal | D3: Nederlands | E3: Français | F3: English
A4: D2 | B4: 1 | C4: =INDEX(D4:F4,0,$D$2) -> Effect van Springplank op de werkloosheidsvergoeding. | D4: Effect van Springplank op de werkloosheidsvergoeding. | E4: Effet de la mesure tremplin sur l'allocation de chômage | F4: Trampoline
A5: B4 | B5: 2 | C5: =INDEX(D5:F5,0,$D$2) -> Het dagbedrag van je Dagelijkse Werkloosheidsuitkering (DW) zal verminderd worden met het deel van het bedrag van het dagelijks inkomen | D5: Het dagbedrag van je Dagelijkse Werkloosheidsuitkering (DW) zal verminderd worden met het deel van het bedrag van het dagelijks inkomen | E5: Le montant de votre Allocation de Chômage Journalière (ACJ) sera diminuée de la partie du montant du revenu journalier obtenu avec votre activité | F5: Het dagbedrag van je Dagelijkse Werkloosheidsuitkering (DW) zal verminderd worden met het deel van het bedrag van het dagelijks inkomen
A6: B5 | B6: 3 | C6: =INDEX(D6:F6,0,$D$2) -> dat verkregen wordt uit je nevenactiviteit dat 14,84 € overschrijdt (volgens de index geldig op 1/9/2021). | D6: =CONCATENATE("dat verkregen wordt uit je nevenactiviteit dat ",TEXT(Parameter_RVA,"#.##0,00 € ")," overschrijdt (volgens de index geldig op 1/9/2021).") -> dat verkregen wordt uit je nevenactiviteit dat 14,84 € overschrijdt (volgens de index geldig op 1/9/2021). | E6: =CONCATENATE("complémentaire qui dépasse ",TEXT(Parameter_RVA,"#.##0,00 € ")," (Selon l'indice valable le 1/9/2021)") -> complémentaire qui dépasse 14,84 € (Selon l'indice valable le 1/9/2021) | F6: =CONCATENATE("dat verkregen wordt uit je nevenactiviteit dat ",TEXT(Parameter_RVA,"#.##0,00 € ")," overschrijdt (volgens de index geldig op 1/9/2021).") -> dat verkregen wordt uit je nevenactiviteit dat 14,84 € overschrijdt (volgens de index geldig op 1/9/2021).
A7: B7 | B7: 4 | C7: =INDEX(D7:F7,0,$D$2) -> Het dagelijks inkomen wordt bekomen door het netto belastbaar jaarinkomen (= bruto - lasten) te delen door 312. | D7: Het dagelijks inkomen wordt bekomen door het netto belastbaar jaarinkomen (= bruto - lasten) te delen door 312. | E7: Le revenu journalier est obtenu en divisant le revenu annuel net imposable (= brut - charges) par 312. | F7: Het dagelijks inkomen wordt bekomen door het netto belastbaar jaarinkomen (= bruto - lasten) te delen door 312.
A8: C7 | B8: 5 | C8: =INDEX(D8:F8,0,$D$2) -> (of door je maandelijks inkomen te delen door 26) | D8: (of door je maandelijks inkomen te delen door 26) | E8: (ou en divisant votre revenu mensuel par 26) | F8: (of door je maandelijks inkomen te delen door 26)
A9: B9 | B9: 6 | C9: =INDEX(D9:F9,0,$D$2) -> Op basis van deze regel | D9: Op basis van deze regel | E9: Sur la base de cette règle | F9: Op basis van deze regel
A10: B10 | B10: 7 | C10: =INDEX(D10:F10,0,$D$2) -> 1/ Krijg je je volledige werkloosheidsuitkering nog als je netto belastbaar jaarinkomen kleiner of gelijk is aan 14,84 € x 312 = €4630,08 ) | D10: =CONCATENATE("1/ Krijg je je volledige werkloosheidsuitkering nog als je netto belastbaar jaarinkomen kleiner of gelijk is aan ",TEXT(Parameter_RVA,"#.##0,00 €")," x 312 = €",Parameter_RVA*312," )") -> 1/ Krijg je je volledige werkloosheidsuitkering nog als je netto belastbaar jaarinkomen kleiner of gelijk is aan 14,84 € x 312 = €4630,08 ) | E10: =CONCATENATE("1/ Vous recevrez votre allocation de chômage complète si votre revenu annuel net imposable est inférieur ou égal à ",TEXT(Parameter_RVA,"#.##0,00 €")," x 312 = €",Parameter_RVA*312," )") -> 1/ Vous recevrez votre allocation de chômage complète si votre revenu annuel net imposable est inférieur ou égal à 14,84 € x 312 = €4630,08 ) | F10: =CONCATENATE("1/ Krijg je je volledige werkloosheidsuitkering nog als je netto belastbaar jaarinkomen kleiner of gelijk is aan ",TEXT(Parameter_RVA,"#.##0,00 €")," x 312 = €",Parameter_RVA*312," )") -> 1/ Krijg je je volledige werkloosheidsuitkering nog als je netto belastbaar jaarinkomen kleiner of gelijk is aan 14,84 € x 312 = €4630,08 )
A11: B11 | B11: 8 | C11: =INDEX(D11:F11,0,$D$2) -> 2/ Krijg je geen werkloosheidsuitkering meer als je meer verdiend dan ( 14,84 € + DW) X 312 | D11: =CONCATENATE("2/ Krijg je geen werkloosheidsuitkering meer als je meer verdiend dan ( ",TEXT(Parameter_RVA,"#.##0,00 €")," + DW) X 312") -> 2/ Krijg je geen werkloosheidsuitkering meer als je meer verdiend dan ( 14,84 € + DW) X 312 | E11: =CONCATENATE("2/ Vous ne recevrez pas d'allocations de chômage si vous gagnez plus de ( ",TEXT(Parameter_RVA,"#.##0,00 €")," + ACJ) X 312") -> 2/ Vous ne recevrez pas d'allocations de chômage si vous gagnez plus de ( 14,84 € + ACJ) X 312 | F11: =CONCATENATE("2/ Krijg je geen werkloosheidsuitkering meer als je meer verdiend dan ( ",TEXT(Parameter_RVA,"#.##0,00 €")," + DW) X 312") -> 2/ Krijg je geen werkloosheidsuitkering meer als je meer verdiend dan ( 14,84 € + DW) X 312
A12: B12 | B12: 9 | C12: =INDEX(D12:F12,0,$D$2) -> 3/ Tussen deze bedragen krijg je een werkloosheidsuitkering volgens de formule DW - ( Jaarinkomen/312 - 14,84 € ) | D12: =CONCATENATE("3/ Tussen deze bedragen krijg je een werkloosheidsuitkering volgens de formule DW - ( Jaarinkomen/312 - ",TEXT(Parameter_RVA,"#.##0,00 €")," )") -> 3/ Tussen deze bedragen krijg je een werkloosheidsuitkering volgens de formule DW - ( Jaarinkomen/312 - 14,84 € ) | E12: =CONCATENATE("3/ Entre ces montants, vous recevrez des allocations de chômage selon la formule ACJ - ( Revenus annuels/312 - ",TEXT(Parameter_RVA,"#.##0,00 €")," )") -> 3/ Entre ces montants, vous recevrez des allocations de chômage selon la formule ACJ - ( Revenus annuels/312 - 14,84 € ) | F12: =CONCATENATE("3/ Tussen deze bedragen krijg je een werkloosheidsuitkering volgens de formule DW - ( Jaarinkomen/312 - ",TEXT(Parameter_RVA,"#.##0,00 €")," )") -> 3/ Tussen deze bedragen krijg je een werkloosheidsuitkering volgens de formule DW - ( Jaarinkomen/312 - 14,84 € )
A13: B14 | B13: 10 | C13: =INDEX(D13:F13,0,$D$2) -> Basisinformatie | D13: Basisinformatie | E13: Informations de base | F13: Basisinformatie
A14: E14 | B14: 11 | C14: =INDEX(D14:F14,0,$D$2) -> Per maand | D14: Per maand | E14: Mensuel | F14: Monthly
A15: G14 | B15: 12 | C15: =INDEX(D15:F15,0,$D$2) -> Toelage vermindert vanaf | D15: Toelage vermindert vanaf | E15: L'allocation diminue à partir de | F15: Toelage vermindert vanaf
A16: J14 | B16: 13 | C16: =INDEX(D16:F16,0,$D$2) -> Toelage valt volledig weg vanaf | D16: Toelage valt volledig weg vanaf | E16: L'allocation est supprimée à partir de | F16: Toelage valt volledig weg vanaf
A17: B15 | B17: 14 | C17: =INDEX(D17:F17,0,$D$2) -> Dagelijkse Werloosheidsvergoeding (DW) | D17: Dagelijkse Werloosheidsvergoeding (DW) | E17: Allocation de chômage journalière (ACJ) | F17: Dagelijkse Werloosheidsvergoeding (DW)
A18: D15 | B18: 15 | C18: =INDEX(D18:F18,0,$D$2) -> of x26 | D18: of x26 | E18: ou x26 | F18: or x26
A19: B16 | B19: 16 | C19: =INDEX(D19:F19,0,$D$2) -> Parameter RVA | D19: Parameter RVA | E19: Paramètre ONEM | F19: Parameter RVA
A20: D16 | B20: 17 | C20: =INDEX(D20:F20,0,$D$2) -> index 1/9/2021 | D20: index 1/9/2021 | E20: index 1/9/2021 | F20: index 1/9/2021
A21: B18 | B21: 18 | C21: =INDEX(D21:F21,0,$D$2) -> Geschat jaarinkomen Inkomsten - kosten | D21: Geschat jaarinkomen Inkomsten - kosten | E21: Estimation du revenu annuel Recettes - coûts | F21: Geschat jaarinkomen Inkomsten - kosten
A22: G18 | B22: 19 | C22: =INDEX(D22:F22,0,$D$2) -> Gemiddeld uitbetaalde werkloosheidsvergoeding | D22: Gemiddeld uitbetaalde werkloosheidsvergoeding | E22: Allocation de chômage moyenne reçue | F22: Gemiddeld uitbetaalde werkloosheidsvergoeding
A23: G19 | B23: 20 | C23: =INDEX(D23:F23,0,$D$2) -> Ontvangen van RVA | D23: Ontvangen van RVA | E23: Reçu de l'ONEM | F23: Ontvangen van RVA
A24: B20 | B24: 21 | C24: =INDEX(D24:F24,0,$D$2) -> Grafische voorstelling | D24: Grafische voorstelling | E24: Graphique | F24: Grafische voorstelling
A25: But C20 | B25: 22 | C25: =INDEX(D25:F25,0,$D$2) -> Werk grafiek bij | D25: Werk grafiek bij | E25: Mise à jour du graphique | F25: Update chart
A26: G20 | B26: 23 | C26: =INDEX(D26:F26,0,$D$2) -> Terug te betalen aan RVA | D26: Terug te betalen aan RVA | E26: Remboursable à l'ONEM | F26: Terug te betalen aan RVA
A27: Craf 1 | B27: 24 | C27: =INDEX(D27:F27,0,$D$2) -> Dagelijkse werkloosheidvergoeding in functie van het Jaarinkomen | D27: Dagelijkse werkloosheidvergoeding in functie van het Jaarinkomen | E27: Allocation journalière de chômage en fonction du revenu annuel | F27: Dagelijkse werkloosheidvergoeding in functie van het Jaarinkomen
A28: Graf 2 | B28: 25 | C28: =INDEX(D28:F28,0,$D$2) -> Dagelijkse werkloosheidsvergoeding | D28: Dagelijkse werkloosheidsvergoeding | E28: Indemnité journalière de chômage | F28: Dagelijkse werkloosheidsvergoeding
A29: Graf 3 | B29: 26 | C29: =INDEX(D29:F29,0,$D$2) -> Jaarinkomen | D29: Jaarinkomen | E29: Revenu annuel | F29: Jaarinkomen
A30: O21 | B30: 27 | C30: =INDEX(D30:F30,0,$D$2) -> Evolutie van het terug te betalen bedrag aan de RVA in functie van de dagelijkse werkloosheidsvergoeding en het jaarlijks inkomen uit het zelfstandig beroep; | D30: Evolutie van het terug te betalen bedrag aan de RVA in functie van de dagelijkse werkloosheidsvergoeding en het jaarlijks inkomen uit het zelfstandig beroep; | E30: Evolution du montant à rembourser à l'ONEM en fonction de l'allocation journalier et le revenu entant que indépendant | F30: Evolution of the amount to pay back to RVA/ONEM related to the daily allowance and the yearly income as independant
A31: P46 | B31: 28 | C31: =INDEX(D31:F31,0,$D$2) -> Niets terug te betalen | D31: Niets terug te betalen | E31: Rien à rembourser | F31: Nothing to pay back
A32: P47 | B32: 29 | C32: =INDEX(D32:F32,0,$D$2) -> Gedeeltelijk terug te betalen | D32: Gedeeltelijk terug te betalen | E32: Partiellement rembourser | F32: Partial pay back
A33: P48 | B33: 30 | C33: =INDEX(D33:F33,0,$D$2) -> Alles terug te betalen | D33: Alles terug te betalen | E33: Tout à rembourser | F33: Pay back everything
